bitfinex/quotes_SOLUSD_20240726
["timestamp","ask_amount","ask_price","bid_price","bid_amount"]
[1722018824199,45.0,182.08,182.06,5.4926]
[1722018824414,45.0,182.09,182.06,18.5726]
[1722018824626,45.0,182.1,182.06,18.5726]
[1722018824798,45.0,182.1,182.06,13.08]
[1722018824999,5.72371928,182.12,182.09,5.4917]
[1722018825208,13.08,182.13,182.08,13.08]
[1722018825405,13.08,182.12,182.09,5.4917]
[1722018825701,13.08,182.11,182.08,5.492]
[1722018826121,13.08,182.11,182.07,19.2225]
[1722018827319,45.0,182.1,182.07,19.2225]
[1722018827823,14.45304274,182.09,182.07,13.7302]
[1722018828030,45.0,182.08,182.07,19.2225]
[1722018829698,45.0,182.08,182.07,13.7302]
[1722018830114,45.0,182.08,182.07,19.2225]
[1722018830338,20.0,182.15,182.07,13.7302]
[1722018830625,13.08,182.14,182.12,19.2178]
[1722018830803,5.72251541,182.16,182.13,5.4904]
[1722018831002,13.08,182.15,182.13,5.4904]
[1722018831211,13.08,182.15,182.12,13.7271]
[1722018831415,13.08,182.15,182.12,19.2179]
[1722018831603,5.4894,182.17,182.12,13.7271]
[1722018831604,15.84909572,182.17,182.12,13.7271]
[1722018831803,5.72190555,182.19,182.13,13.08]
[1722018832009,13.08,182.19,182.14,14.82301408]
[1722018832221,13.08,182.19,182.16,5.4895]
[1722018832531,13.08,182.17,182.14,13.7251]
[1722018832837,13.08,182.17,182.11,13.7279]
[1722018833037,13.08,182.16,182.11,26.8079]
[1722018833204,13.08,182.16,182.11,13.7279]
[1722018833403,13.08,182.16,182.11,26.8079]
[1722018833623,13.08,182.17,182.12,13.08]
[1722018833924,13.08,182.15,182.1,29.4893]
[1722018834126,13.08,182.15,182.11,5.4909]
[1722018834327,13.08,182.13,182.1,21.9004]
[1722018834633,13.08,182.14,182.11,5.4909]
[1722018834927,45.0,182.13,182.11,5.4909]
[1722018835108,13.08,182.12,182.11,5.4909]
[1722018835311,58.08,182.12,182.09,13.7287]
[1722018835616,13.08,182.12,182.09,13.7287]
[1722018835911,45.0,182.11,182.09,13.7287]
[1722018836729,45.0,182.11,182.09,19.2204]
[1722018837435,45.0,182.11,182.1,5.4914]
[1722018837811,45.0,182.11,182.09,19.2204]
[1722018838117,13.08,182.1,182.09,13.7287]
[1722018838306,58.08,182.1,182.09,13.7287]
[1722018838507,63.5717,182.1,182.06,29.1273]
[1722018838728,13.08,182.07,182.03,13.7339]
[1722018838924,13.08,182.06,182.05,5.4929]
[1722018839231,13.08,182.06,182.04,5.4932]
[1722018839531,45.0,182.05,182.04,5.4932]
[1722018840511,58.08,182.05,182.03,19.2274]
[1722018840735,45.0,182.05,182.04,5.4932]
[1722018842031,58.08,182.05,182.04,5.4932]
[1722018842707,58.08,182.05,182.03,13.7339]
[1722018842912,13.08,182.04,181.99,6.2636]
[1722018843106,13.08,182.01,182.0,5.4945]
[1722018843929,13.08,182.02,182.0,5.4945]
[1722018844713,13.08,182.02,182.01,5.4942]
[1722018844920,58.08,182.02,182.01,5.4942]
[1722018845321,5.4921,182.08,182.03,5.4935]
[1722018845619,20.0,182.1,182.01,19.2287]
[1722018845620,13.08,182.04,182.01,19.2287]
[1722018845820,58.08,182.03,182.02,5.4938]
[1722018846042,45.0,182.03,182.02,5.4938]
[1722018848436,13.08,182.04,182.01,13.7348]
[1722018848620,13.08,182.06,182.01,26.8148]
[1722018848821,45.0,182.06,182.04,5.493]
[1722018849021,58.08,182.06,182.04,5.493]
[1722018850220,58.08,182.06,182.05,5.4929]
[1722018850419,58.08,182.06,182.03,19.2267]
[1722018852343,13.08,182.05,182.03,19.2267]
[1722018853135,13.08,182.05,182.04,5.4932]
[1722018853445,58.08,182.05,182.04,5.4932]
[1722018855843,45.0,182.05,182.04,5.4932]
[1722018856442,13.08,182.06,182.03,13.7334]
[1722018856746,13.08,182.11,182.05,26.8119]
[1722018856950,13.08,182.11,182.09,5.4916]
[1722018857248,13.08,182.11,182.08,5.492]
[1722018858023,13.08,182.1,182.07,19.2227]
[1722018858241,45.0,182.09,182.07,19.2227]
[1722018858828,45.0,182.09,182.07,13.7304]
[1722018859042,45.0,182.1,182.07,13.7304]
[1722018859425,45.0,182.1,182.07,19.2227]
[1722018859733,45.0,182.1,182.07,13.7304]
[1722018859936,45.0,182.1,182.08,5.492]
[1722018860236,45.0,182.1,182.07,19.2227]
[1722018862447,45.0,182.1,182.08,5.492]
[1722018863350,45.0,182.11,182.09,5.4916]
[1722018864255,45.0,182.11,182.08,5.492]
[1722018864428,58.08,182.11,182.08,5.492]
[1722018864845,58.08,182.11,182.07,19.2227]
[1722018865744,58.08,182.11,182.08,5.492]
[1722018867769,45.0,182.11,182.08,5.492]
[1722018868640,45.0,182.11,182.07,19.2227]
[1722018868641,58.08,182.11,182.07,19.2227]
[1722018870952,5.4906,182.13,182.08,5.4919]
[1722018871159,20.0,182.12,182.08,5.4919]
[1722018872055,20.0,182.12,182.07,19.2227]
[1722018872235,45.0,182.11,182.07,19.2227]
[1722018872440,50.4912,182.11,182.07,19.2227]
[1722018872649,50.4912,182.11,182.07,13.7304]
[1722018873758,45.0,182.11,182.07,13.7304]
[1722018873963,13.08,182.09,182.07,13.7304]
[1722018874762,13.08,182.1,182.07,19.2226]
[1722018875062,45.0,182.09,182.07,19.2226]
[1722018876662,45.0,182.09,182.07,13.7304]
[1722018877567,45.0,182.09,182.07,19.2227]
[1722018880461,13.08,182.1,182.07,19.2227]
[1722018880665,45.0,182.09,182.07,19.2227]
[1722018884964,13.08,182.1,182.07,19.2227]
[1722018885163,13.08,182.11,182.07,19.2227]
[1722018885375,45.0,182.1,182.07,19.2227]
[1722018885754,13.08,182.11,182.07,13.7304]
[1722018885954,21.34153088,182.13,182.07,26.8104]
[1722018886154,65.0,182.12,182.07,26.8104]
[1722018886370,5.72649227,182.14,182.11,13.08]
[1722018886687,13.08,182.16,182.12,19.218]
[1722018886847,5.4894,182.17,182.13,5.4904]
[1722018887177,13.08,182.17,182.13,5.4904]
[1722018887347,14.45249125,182.17,182.13,5.4904]
[1722018887749,20.0,182.16,182.13,5.4904]
[1722018888263,33.08,182.16,182.13,5.4904]
[1722018892572,59.4525131,182.15,182.12,13.7272]
[1722018893578,58.08,182.15,182.12,13.7272]
[1722018894074,13.08,182.14,182.12,13.7272]
[1722018894677,58.08,182.15,182.12,19.2178]
[1722018897275,1.3726202,182.14,182.12,19.2178]
[1722018897659,14.4526202,182.14,182.12,19.2178]
[1722018898177,13.08,182.14,182.12,19.2178]
[1722018898679,14.45265363,182.14,182.12,19.2178]
[1722018898862,45.0,182.13,182.12,13.7272]
[1722018899059,58.08,182.13,182.1,5.4914]
[1722018899251,13.08,182.11,182.09,19.2207]
[1722018899452,58.08,182.1,182.09,19.2207]
[1722018900972,58.08,182.1,182.07,5.4921]
[1722018901175,13.08,182.09,182.07,5.4921]
[1722018901349,13.08,182.09,182.08,5.492]
[1722018901556,58.08,182.09,182.08,5.492]
[1722018901966,58.08,182.09,182.07,19.2228]
[1722018902277,58.08,182.08,182.07,13.7305]
[1722018902578,58.08,182.08,182.07,19.2228]
[1722018902965,58.08,182.08,182.07,13.7305]
[1722018905783,58.08,182.08,182.05,5.4929]
[1722018906076,13.08,182.06,182.01,43.6379]
[1722018906262,13.08,182.04,182.03,5.4935]
[1722018906462,58.08,182.04,182.03,5.4935]
[1722018906679,45.0,182.04,182.03,5.4935]
[1722018908455,5.72951972,182.08,182.01,43.6379]
[1722018908679,20.0,182.07,182.06,5.4926]
[1722018908882,45.0,182.07,182.06,5.4926]
[1722018909059,58.08,182.07,182.05,5.4929]
[1722018910482,45.0,182.07,182.06,5.4926]
[1722018911061,13.08,182.09,182.07,5.4923]
[1722018911569,45.0,182.08,182.07,5.4923]
[1722018912081,45.0,182.08,182.06,5.4926]
[1722018913365,21.58183933,182.12,182.06,5.4926]
[1722018913366,21.58183933,182.12,182.07,13.08]
[1722018913569,65.0,182.11,182.07,13.08]
[1722018913786,15.85296989,182.12,182.1,13.08]
[1722018914084,15.85296989,182.12,182.11,18.5711]
[1722018915688,18.5681,182.22,182.17,5.4893]
[1722018915871,9.90341147,182.21,182.18,5.489]
[1722018916063,25.74886982,182.21,182.18,5.489]
[1722018916263,9.90341147,182.2,182.17,5.4893]
[1722018916482,9.90341147,182.21,182.17,5.4893]
[1722018916658,22.98341147,182.21,182.17,5.4893]
[1722018916867,13.08,182.21,182.17,5.4893]
[1722018917276,45.0,182.2,182.17,5.4893]
[1722018919169,13.08,182.2,182.17,5.4893]
[1722018919494,58.08,182.21,182.17,5.4893]
[1722018920595,13.08,182.2,182.17,5.4893]
[1722018920787,58.08,182.19,182.16,13.7235]
[1722018921096,13.08,182.18,182.15,5.4897]
[1722018922284,13.08,182.16,182.14,5.4902]
[1722018923077,13.08,182.15,182.14,5.4902]
[1722018923289,45.0,182.17,182.14,5.4902]
[1722018923477,13.08,182.17,182.15,5.4899]
[1722018923895,13.08,182.16,182.15,5.4899]
[1722018924098,13.08,182.16,182.14,5.4902]
[1722018925095,45.0,182.18,182.15,5.4899]
[1722018925399,13.08,182.16,182.15,5.4899]
[1722018925572,58.08,182.16,182.15,5.4899]
[1722018926682,58.08,182.16,182.14,5.4902]
[1722018926880,13.08,182.15,182.13,19.2167]
[1722018927101,58.08,182.14,182.13,19.2167]
[1722018927676,58.08,182.14,182.13,13.7262]
[1722018927877,5.4906,182.13,182.09,19.2204]
[1722018928080,13.08,182.1,182.09,19.2204]
[1722018928282,58.08,182.1,182.09,19.2204]
[1722018931617,45.0,182.1,182.09,19.2204]
[1722018933111,45.0,182.1,182.06,20.2171]
[1722018933112,58.08,182.1,182.06,20.2171]
[1722018933312,13.08,182.07,182.06,13.7317]
[1722018933490,13.08,182.07,182.03,13.7337]
[1722018933491,58.08,182.07,182.03,13.7337]
[1722018933694,13.08,182.04,182.03,13.7337]
[1722018933907,58.08,182.04,182.03,13.7337]
[1722018934411,58.08,182.04,182.03,19.2272]
[1722018934584,45.0,182.04,182.03,19.2272]
[1722018936190,5.72712191,182.09,182.05,5.4929]
[1722018936512,13.08,182.06,182.05,5.4929]
[1722018936816,58.08,182.08,182.06,5.4925]
[1722018937201,58.08,182.08,182.05,5.4929]
[1722018937383,13.08,182.07,182.05,5.4929]
[1722018937584,45.0,182.06,182.05,5.4929]
[1722018938004,58.08,182.06,182.03,19.2272]
[1722018938190,13.08,182.05,182.03,19.2272]
[1722018938690,13.08,182.05,182.04,5.4932]
[1722018939210,58.08,182.06,182.05,5.4929]
[1722018939693,58.08,182.06,182.03,13.7337]
[1722018939694,45.0,182.06,182.03,13.7337]
[1722018939894,45.0,182.06,182.05,5.4929]
[1722018940607,58.08,182.06,182.04,5.4932]
[1722018943203,58.08,182.06,182.03,13.7337]
[1722018944009,58.08,182.06,182.03,19.2271]
[1722018944312,45.0,182.06,182.04,5.4932]
[1722018944515,45.0,182.06,182.05,5.4929]
[1722018945309,5.4913,182.11,182.05,5.4929]
[1722018945514,13.08,182.08,182.05,5.4929]
[1722018945715,13.08,182.07,182.03,19.227]
[1722018946097,13.08,182.06,182.03,19.2272]
[1722018947310,58.08,182.05,182.03,19.2272]
[1722018947525,58.08,182.05,182.03,13.7337]
[1722018948301,58.08,182.05,182.02,5.4938]
[1722018948720,58.08,182.05,182.03,5.4935]
[1722018950804,58.08,182.05,182.02,5.4938]
[1722018951019,58.08,182.05,182.0,41.9932]
[1722018951222,13.08,182.04,182.0,28.9132]
[1722018951428,13.08,182.04,182.02,5.4938]
[1722018951612,13.08,182.04,182.0,19.2303]
[1722018951613,58.08,182.03,182.0,19.2303]
[1722018951811,13.08,182.01,182.0,19.2304]
[1722018952105,58.08,182.01,182.0,13.7359]
[1722018952610,58.08,182.01,181.97,19.2333]
[1722018952806,58.08,182.0,181.98,5.495]
[1722018953013,58.08,182.0,181.99,5.4948]
[1722018953014,45.0,182.0,181.99,5.4948]
[1722018956219,58.08,182.0,181.98,5.495]
[1722018956419,13.08,181.99,181.98,5.495]
[1722018956620,58.08,181.99,181.98,5.495]
[1722018956921,59.45381056,181.99,181.97,19.2335]
[1722018957121,45.0,181.98,181.97,19.2335]
[1722018957421,59.45383401,181.98,181.97,13.7382]
[1722018957603,58.08,181.98,181.97,13.7382]
[1722018958001,58.08,181.98,181.97,19.2336]
[1722018959126,45.0,181.98,181.97,19.2336]
[1722018961417,13.08,182.01,181.99,5.4946]
[1722018961725,78.08,182.0,181.99,5.4946]
[1722018962020,78.08,182.0,181.98,5.495]
[1722018962326,14.45378255,181.99,181.97,13.7382]
[1722018962624,45.0,181.98,181.97,13.7382]
[1722018962829,45.0,181.98,181.97,19.2336]
[1722018963929,20.0,182.0,181.97,13.7382]
[1722018964106,45.0,181.99,181.98,5.4948]
[1722018965213,20.0,182.0,181.98,5.4948]
[1722018966114,45.0,181.99,181.98,5.4948]
[1722018966923,20.0,182.0,181.98,5.4948]
[1722018967121,13.08,182.01,181.99,5.4946]
[1722018967319,45.0,182.0,181.99,5.4946]
[1722018968130,45.0,182.0,181.98,5.495]
[1722018974536,45.0,182.0,181.99,5.4948]
[1722018977738,58.08,182.0,181.99,5.4948]
[1722018977939,58.08,182.0,181.97,19.2333]
[1722018978148,14.45384153,181.99,181.97,19.2333]
[1722018978324,45.0,181.98,181.97,19.2333]
[1722018991659,58.08,181.98,181.94,13.7407]
[1722018991961,13.08,181.95,181.94,19.2369]
[1722018992136,58.08,181.95,181.94,19.2369]
[1722018992744,58.08,181.95,181.94,13.7407]
[1722018993158,58.08,181.95,181.92,5.4968]
[1722018993363,46.37423465,181.94,181.92,5.4968]
[1722018993741,45.0,181.94,181.92,5.4968]
[1722018994457,45.0,181.95,181.92,5.4968]
[1722018994640,45.0,181.95,181.93,5.4965]
[1722018994964,45.0,181.96,181.93,5.4965]
[1722018996458,46.37415922,181.96,181.93,5.4965]
[1722018997048,59.45415922,181.96,181.93,5.4965]
[1722018997251,58.08,181.96,181.93,5.4965]
[1722018997646,45.0,181.96,181.93,5.4965]
[1722018998398,45.0,181.96,181.93,13.7408]
[1722018998557,18.5747,182.0,181.96,5.4956]
[1722018998741,13.08,182.0,181.96,5.4956]
[1722018999864,5.4942,182.01,181.96,18.5756]
[1722018999865,45.0,181.99,181.96,18.5756]
[1722019000065,63.5745,182.0,181.95,26.8195]
[1722019000281,63.5745,182.0,181.95,32.3154]
[1722019000584,20.0,181.99,181.95,32.3154]
[1722019000781,45.0,181.98,181.95,32.3154]
[1722019003773,45.0,181.98,181.96,5.4956]
[1722019004181,45.0,181.98,181.96,18.5756]
[1722019004473,45.0,181.98,181.95,32.3154]
[1722019004680,45.0,181.98,181.95,19.2354]
[1722019005101,5.71417716,182.03,181.97,13.08]
[1722019005399,5.71417716,182.03,182.0,13.08]
[1722019005599,18.5733,182.04,181.99,32.3112]
[1722019005971,13.08,182.04,182.0,5.4944]
[1722019006186,18.573,182.05,182.0,18.5744]
[1722019006382,5.4933,182.04,182.0,18.5744]
[1722019006571,45.0,182.03,182.0,13.08]
[1722019006979,13.08,182.05,182.01,5.494]
[1722019007209,1.37346348,182.04,181.99,13.7365]
[1722019007496,1.37346348,182.04,181.99,26.8165]
[1722019007785,13.08,182.05,181.99,26.8165]
[1722019008208,20.0,182.04,182.0,5.4944]
[1722019008417,45.0,182.03,182.0,5.4944]
[1722019008706,46.37354852,182.03,181.99,32.3112]
[1722019008872,13.08,182.02,181.99,13.7365]
[1722019009079,58.08,182.01,181.99,13.7365]
[1722019010490,1.37368911,182.0,181.99,13.7365]
[1722019010691,14.4537216,182.0,181.99,13.7365]
[1722019010872,59.4537216,182.0,181.99,13.7365]
[1722019011075,58.08,182.0,181.98,5.495]
[1722019011284,45.0,181.99,181.98,5.495]
[1722019012376,45.0,181.99,181.96,13.7389]
[1722019012593,58.08,181.99,181.96,13.7389]
[1722019013612,1.37389596,181.98,181.96,19.2343]
[1722019013906,58.08,181.99,181.96,19.2343]
[1722019014473,13.08,181.97,181.94,6.6117]
[1722019014726,46.37404373,181.96,181.94,6.6117]
[1722019015102,45.0,181.96,181.94,6.6117]
[1722019015404,45.0,181.96,181.95,5.496]
[1722019018084,5.4942,182.01,181.97,5.4954]
[1722019018399,78.08,182.0,181.95,13.08]
[1722019018576,65.0,182.0,181.98,5.4948]
[1722019019192,78.08,182.0,181.98,5.4948]
[1722019019394,78.08,182.0,181.97,19.2332]
[1722019019586,14.45380019,181.99,181.95,5.4957]
[1722019019783,46.37395471,181.98,181.95,5.4957]
[1722019020019,13.08,181.97,181.95,5.4957]
[1722019020199,59.45395471,181.98,181.95,5.4957]
[1722019020899,1.37397659,181.97,181.95,5.4957]
[1722019021600,1.37397659,181.97,181.96,5.4957]
[1722019021792,58.08,181.98,181.96,5.4957]
[1722019021998,1.37394202,181.97,181.96,5.4957]
[1722019024116,58.08,181.98,181.96,5.4957]
[1722019024705,45.0,181.98,181.96,5.4957]
[1722019024908,46.37394017,181.98,181.96,5.4957]
[1722019027728,59.45394017,181.98,181.96,5.4957]
[1722019027890,58.08,181.98,181.96,5.4957]
[1722019028091,45.0,181.98,181.96,5.4957]
[1722019028303,45.0,181.98,181.97,5.4954]
[1722019028526,58.08,181.98,181.9,44.1547573]
[1722019028731,13.08,181.95,181.93,13.7413]
[1722019029043,45.0,181.94,181.93,19.2379]
[1722019029901,45.0,181.94,181.93,13.7413]
[1722019030820,45.0,181.94,181.91,5.4971]
[1722019031141,46.37422732,181.94,181.92,5.4968]
[1722019031306,45.0,181.93,181.92,5.4968]
[1722019036105,59.45428358,181.93,181.91,5.4971]
[1722019036306,1.37433559,181.92,181.91,5.4971]
[1722019037205,1.37433559,181.92,181.9,14.0321573]
[1722019037206,13.08,181.92,181.9,14.0321573]
[1722019037412,58.08,181.91,181.9,19.5295573]
[1722019038000,58.08,181.91,181.9,14.0321573]
[1722019038232,58.08,181.91,181.9,0.2886573]
[1722019038413,59.45461406,181.91,181.9,0.2886573]
[1722019038620,59.45461406,181.91,181.9,5.7861573]
[1722019038935,45.0,181.91,181.9,5.7861573]
[1722019042734,13.08,181.96,181.93,13.7414]
[1722019042937,13.08,181.97,181.93,13.7414]
[1722019043840,13.08,181.97,181.94,5.4962]
[1722019044139,13.08,181.96,181.94,5.4962]
[1722019044448,46.37414193,181.95,181.94,5.4962]
[1722019044955,45.0,181.95,181.94,5.4962]
[1722019052634,45.0,181.95,181.93,19.2377]
[1722019052835,45.0,181.96,181.93,19.2377]
[1722019053048,45.0,181.96,181.94,5.4962]
[1722019054650,45.0,181.96,181.93,13.7414]
[1722019054852,5.74104789,181.98,181.96,5.4955]
[1722019054853,45.0,181.97,181.96,5.4955]
[1722019055733,45.0,181.97,181.95,32.3155]
[1722019055931,46.37400877,181.97,181.95,13.7396]
[1722019056153,46.37400877,181.97,181.92,26.8219]
[1722019056354,46.37400877,181.97,181.93,5.4963]
[1722019056733,46.37400877,181.97,181.94,5.4962]
[1722019057433,46.37400877,181.97,181.95,5.4959]
[1722019058438,46.37400877,181.97,181.94,5.4962]
[1722019058836,46.37400877,181.97,181.95,5.4959]
[1722019059138,59.45400877,181.97,181.94,5.4962]
[1722019059938,13.08,181.96,181.94,5.4962]
[1722019060136,46.37413725,181.95,181.93,5.4965]
[1722019060340,46.37413725,181.95,181.92,13.7419]
[1722019060341,59.45413725,181.95,181.92,19.2387]
[1722019060548,59.45413725,181.95,181.93,5.4965]
[1722019060752,45.0,181.95,181.93,5.4965]
[1722019061159,1.37422811,181.94,181.93,5.4965]
[1722019061564,45.0,181.95,181.93,5.4965]
[1722019062541,45.0,181.95,181.94,5.4963]
[1722019062744,65.0,181.95,181.93,5.4965]
[1722019065361,45.0,181.95,181.93,5.4965]
[1722019065666,45.0,181.96,181.93,5.4965]
[1722019065867,20.0,181.95,181.93,5.4965]
[1722019066163,45.0,181.94,181.93,5.4965]
[1722019067861,45.0,181.94,181.92,19.2387]
[1722019075772,45.0,181.94,181.92,13.7419]
[1722019075943,1.37426081,181.93,181.92,13.7419]
[1722019076146,45.0,181.94,181.92,13.7419]
[1722019076758,45.0,181.94,181.93,18.5766]
[1722019077548,5.74104789,181.98,181.94,13.7403]
[1722019077770,13.08,182.0,181.97,5.4953]
[1722019077959,45.0,181.99,181.97,5.4953]
[1722019078362,13.08,182.01,181.98,5.495]
[1722019078650,14.45383736,182.0,181.96,19.2341]
[1722019078859,13.08,181.99,181.96,19.2341]
[1722019079057,1.37394703,181.98,181.96,19.2341]
[1722019079265,11.23305273,182.02,181.97,5.4954]
[1722019079465,13.08,182.0,181.97,5.4954]
[1722019079659,45.0,181.99,181.97,5.4954]
[1722019080567,45.0,182.0,181.97,5.4954]
[1722019080771,45.0,182.0,181.96,26.8187]
[1722019080963,58.08,182.01,181.97,5.4951]
[1722019081270,20.0,182.0,181.97,5.4951]
[1722019081461,45.0,181.99,181.97,5.4951]
[1722019081660,46.37385898,181.99,181.97,5.4951]
[1722019083677,59.45385898,181.99,181.97,5.4951]
[1722019084790,1.37385883,181.98,181.96,19.2343]
[1722019085075,13.14385883,181.98,181.96,19.2343]
[1722019085373,56.77,181.97,181.95,5.4959]
[1722019085560,11.77,181.96,181.94,5.4961]
[1722019085768,45.0,181.95,181.94,5.4961]
[1722019086277,11.77,181.98,181.97,5.4954]
[1722019086471,31.77,181.98,181.97,5.4954]
[1722019086791,76.77,181.98,181.97,5.4954]
[1722019089082,76.77,181.98,181.96,19.2346]
[1722019089379,45.0,181.97,181.96,19.2346]
[1722019094167,45.0,181.97,181.96,13.739]
[1722019094482,56.77,181.97,181.95,5.4959]
[1722019094787,1.37402991,181.96,181.95,5.4959]
[1722019095280,1.37402991,181.96,181.93,19.2376]
[1722019095672,1.37402991,181.96,181.94,5.4962]
[1722019096477,1.37402991,181.96,181.95,5.496]
[1722019096866,56.77,181.97,181.95,5.496]
[1722019099685,1.37405455,181.96,181.95,5.496]
[1722019100687,56.77,181.97,181.96,5.4957]
[1722019102088,45.0,181.97,181.96,5.4957]
[1722019106301,46.3739914,181.97,181.96,5.4957]
[1722019106500,45.0,181.97,181.96,5.4957]
[1722019109671,45.0,181.97,181.95,19.2355]
[1722019109871,1.37406063,181.96,181.95,19.2355]
[1722019110379,56.77,181.97,181.95,13.7396]
[1722019110687,45.0,181.97,181.95,19.2355]
[1722019111575,56.77,181.97,181.95,19.2355]
[1722019113978,1.3740637,181.96,181.95,13.7396]
[1722019114176,13.1440637,181.96,181.94,5.4962]
[1722019114376,46.37417444,181.95,181.94,5.4962]
[1722019115379,56.77,181.95,181.94,5.4962]
[1722019117384,56.77,181.95,181.92,13.7419]
[1722019117581,11.77,181.93,181.92,19.2387]
[1722019117776,56.77,181.93,181.92,19.2387]
[1722019117975,45.0,181.93,181.92,19.2387]
[1722019118295,56.77,181.93,181.92,19.2387]
[1722019118794,56.77,181.93,181.92,13.7419]
[1722019121290,45.0,181.93,181.92,19.2388]
[1722019125309,45.0,181.93,181.92,31.0088]
[1722019126186,45.0,181.93,181.92,19.2388]
[1722019135205,5.4951,181.98,181.93,5.4964]
[1722019135413,20.0,181.97,181.93,5.4964]
[1722019135609,58.14414419,181.96,181.93,5.4964]
[1722019135802,1.37414406,181.95,181.93,5.4964]
[1722019137909,56.77,181.96,181.93,5.4964]
[1722019141013,11.77,181.95,181.93,5.4964]
[1722019141191,45.0,181.94,181.93,5.4964]
[1722019145125,11.77,182.0,181.93,11.77]
[1722019145296,20.0,181.99,181.96,19.234]
[1722019145621,21.37385657,181.99,181.96,19.234]
[1722019146001,20.0,181.99,181.97,5.4953]
[1722019146427,20.0,182.0,181.97,5.4953]
[1722019146611,31.77,182.0,181.97,5.4953]
[1722019146811,33.14384766,182.0,181.96,19.2342]
[1722019147320,11.77,182.02,181.98,5.4948]
[1722019147618,11.77,182.04,181.99,11.77]
[1722019148117,11.77,182.03,181.99,5.4947]
[1722019149046,17.2636,182.03,181.99,5.4947]
[1722019149423,5.4933,182.04,182.0,5.4944]
[1722019149611,56.77,182.03,182.0,5.4944]
[1722019149929,20.0,182.02,182.0,5.4944]
[1722019150145,45.0,182.01,182.0,5.4944]
[1722019151837,45.0,182.01,181.99,5.4947]
[1722019152021,45.0,182.02,181.99,5.4947]
[1722019152408,45.0,182.02,182.0,5.4942]
[1722019153521,45.0,182.02,181.99,5.4947]
[1722019154121,45.0,182.02,182.0,5.4942]
[1722019155527,45.0,182.02,182.01,5.4942]
[1722019155739,45.0,182.02,182.01,19.2297]
[1722019157129,5.4927,182.06,182.02,5.4938]
[1722019157437,11.77,182.03,182.01,13.7355]
[1722019157627,56.77,182.02,181.99,5.4947]
[1722019157842,45.0,182.02,181.99,5.4947]
[1722019158140,11.76,182.01,181.99,5.4947]
[1722019158320,56.76,182.0,181.97,13.738]
[1722019158641,11.76,181.99,181.97,19.2333]
[1722019159426,11.76,181.99,181.98,5.4951]
[1722019159623,45.0,181.99,181.98,5.4951]
[1722019164744,56.76,181.99,181.98,5.4951]
[1722019165240,56.76,181.99,181.97,13.738]
[1722019165445,45.0,181.98,181.97,13.738]
[1722019165824,56.76,181.98,181.97,13.738]
[1722019168242,1.37387939,182.05,181.97,13.738]
[1722019168444,11.76,182.03,182.01,5.4941]
[1722019168743,20.0,182.02,182.01,5.4941]